bitfinex-derivatives/quotes_ETHF0:USTF0_20260310
["timestamp","ask_amount","ask_price","bid_price","bid_amount"]
[1773130008815,0.00545872,2053.7,2052.7,0.61074145]
[1773130009211,0.00545872,2053.7,2052.8,0.24355]
[1773130009418,0.00545872,2053.7,2052.9,0.61074145]
[1773130009717,0.66786337,2054.1,2053.1,0.61074145]
[1773130010018,0.66786337,2054.1,2053.2,0.61074145]
[1773130010818,0.67192111,2054.1,2053.2,0.61074145]
[1773130012124,0.00405774,2054.1,2053.2,0.61074145]
[1773130013323,0.67192111,2054.1,2053.0,0.61074145]
[1773130013621,0.67192111,2054.1,2052.5,0.61552128]
[1773130014716,0.67192111,2054.1,2052.7,0.61074145]
[1773130016019,0.66786337,2053.9,2052.5,0.61552128]
[1773130017626,0.66786337,2053.7,2052.5,0.61552128]
[1773130018428,0.66786337,2053.7,2052.6,0.61074145]
[1773130018627,0.66786337,2053.7,2052.7,0.61074145]
[1773130019931,0.66786337,2053.7,2052.8,0.61074145]
[1773130020337,0.66786337,2054.0,2053.0,0.61074145]
[1773130020533,0.66786337,2054.0,2053.1,13.98826145]
[1773130020732,0.66786337,2054.0,2053.2,0.61074145]
[1773130021234,0.66786337,2054.5,2053.5,0.61074145]
[1773130021441,0.66786337,2054.5,2053.3,0.61074145]
[1773130022037,0.66786337,2054.5,2053.1,4.00220716]
[1773130022236,0.67353961,2054.5,2053.1,4.00220716]
[1773130022737,0.67353961,2054.5,2053.1,4.61294861]
[1773130023334,0.67353961,2054.5,2053.1,0.61074145]
[1773130023635,0.67353961,2054.5,2053.4,0.62537287]
[1773130023840,0.65947846,2054.9,2054.0,0.62537287]
[1773130024040,0.65947846,2054.9,2054.2,0.62537287]
[1773130024731,0.66334776,2054.9,2054.2,0.62971276]
[1773130025133,0.65947846,2055.2,2054.2,0.62971276]
[1773130025338,0.65947846,2055.2,2054.3,0.62537287]
[1773130026238,0.00565101,2055.2,2054.3,0.62537287]
[1773130026443,0.00565101,2055.2,2054.5,0.62537287]
[1773130027143,0.65947846,2055.7,2054.5,0.62537287]
[1773130027444,0.65947846,2055.7,2054.6,13.73137287]
[1773130027742,0.65947846,2055.7,2054.4,0.62537287]
[1773130028134,0.66367958,2055.7,2054.4,0.62537287]
[1773130028737,0.66367958,2055.7,2054.3,13.72737287]
[1773130029041,0.66367958,2055.7,2054.4,0.62537287]
[1773130029939,0.66367958,2055.7,2054.5,0.62537287]
[1773130030645,0.66367958,2055.7,2054.6,0.62537287]
[1773130030943,0.66367958,2055.7,2054.7,0.62537287]
[1773130031142,0.00420112,2055.7,2054.8,0.62537287]
[1773130031342,0.00420112,2055.7,2055.0,0.62537287]
[1773130033144,1.96931899,2056.4,2055.0,4.62758003]
[1773130033343,1.96931899,2056.4,2055.1,4.62758003]
[1773130033643,0.65947846,2056.4,2055.3,0.62537287]
[1773130033844,0.65947846,2056.6,2055.3,0.62537287]
[1773130034247,0.66307045,2056.6,2055.3,0.62537287]
[1773130034439,0.66307045,2056.6,2055.5,0.62537287]
[1773130034948,0.66307045,2056.6,2055.7,0.62537287]
[1773130035146,0.66307045,2056.6,2055.8,0.62537287]
[1773130035744,0.00359199,2056.6,2055.8,0.62537287]
[1773130035944,0.65947846,2057.7,2055.8,0.62537287]
[1773130036547,0.65947846,2057.7,2055.9,0.62537287]
[1773130036948,0.66551614,2057.7,2056.0,0.62537287]
[1773130037240,0.66551614,2057.7,2055.9,9.98466716]
[1773130037241,0.66551614,2057.7,2056.1,0.62537287]
[1773130037947,0.66551614,2057.7,2055.9,9.98466716]
[1773130037948,0.66551614,2057.7,2056.3,0.62537287]
[1773130039149,0.66551614,2057.7,2056.5,0.62537287]
[1773130039450,0.66551614,2057.7,2056.3,0.62537287]
[1773130040742,0.65947846,2057.5,2056.0,0.62537287]
[1773130041549,0.65947846,2057.1,2055.8,0.62537287]
[1773130043647,0.65947846,2056.9,2055.8,0.62537287]
[1773130044252,0.65947846,2056.9,2055.7,0.00500545]
[1773130044652,0.65947846,2056.9,2055.7,0.63037832]
[1773130044950,0.65947846,2056.9,2055.7,0.00500545]
[1773130045652,0.65947846,2056.7,2055.7,0.00500545]
[1773130046245,0.65947846,2056.7,2055.7,0.63037832]
[1773130047252,0.65947846,2056.7,2055.7,0.00500545]
[1773130047453,0.65947846,2056.7,2055.7,0.63037832]
[1773130052358,0.65947846,2057.2,2055.7,0.63037832]
[1773130052559,0.65947846,2057.2,2056.0,0.62537287]
[1773130053453,0.65947846,2057.2,2056.2,0.62537287]
[1773130054054,0.63227072,2057.6,2056.4,0.64855174]
[1773130055354,0.63227072,2057.6,2056.7,0.65116704]
[1773130056263,0.63227072,2057.6,2056.7,0.0026153]
[1773130056654,0.24299,2057.6,2056.2,0.64855174]
[1773130056859,0.63227072,2057.5,2056.2,0.64855174]
[1773130057260,0.63227072,2057.5,2056.3,0.64855174]
[1773130058261,0.24301,2057.4,2056.2,4.02626824]
[1773130058456,0.63227072,2057.1,2056.1,0.64855174]
[1773130058661,0.63227072,2057.1,2055.9,0.64855174]
[1773130059062,0.63227072,2057.1,2055.7,0.00500545]
[1773130059259,0.24306,2057.0,2055.7,4.67982543]
[1773130059459,0.63227072,2056.7,2055.7,0.00500545]
[1773130059868,0.63227072,2056.7,2055.7,0.65355719]
[1773130060060,4.04626129,2057.3,2056.1,0.64855174]
[1773130060262,0.63227072,2057.5,2056.7,0.64855174]
[1773130060466,0.63227072,2057.5,2056.8,0.64855174]
[1773130060872,0.00603768,2057.7,2056.8,0.64855174]
[1773130061468,0.00603768,2057.7,2056.8,4.67481998]
[1773130061670,0.00603768,2057.7,2056.9,0.64855174]
[1773130062069,0.00603768,2057.7,2057.0,0.64855174]
[1773130062265,0.63227072,2057.6,2056.9,4.02626824]
[1773130062570,0.00603768,2057.7,2057.0,0.64855174]
[1773130063073,0.6383084,2057.7,2056.8,4.67481998]
[1773130063268,4.04626129,2058.4,2056.9,0.64855174]
[1773130063470,0.63227072,2058.6,2057.6,4.67481998]
[1773130063666,0.63227072,2059.3,2057.9,0.64855174]
[1773130063866,0.63227072,2059.3,2058.0,0.64855174]
[1773130064278,0.6384792,2059.3,2058.0,0.652956]
[1773130064570,0.63227072,2059.1,2057.4,4.67481998]
[1773130064869,0.63227072,2059.1,2057.4,0.64855174]
[1773130065072,0.63227072,2059.1,2057.5,0.64855174]
[1773130065575,0.63227072,2059.1,2057.6,0.64855174]
[1773130066167,0.24899848,2059.3,2057.6,0.64855174]
[1773130066367,0.24899848,2059.3,2057.5,4.03246961]
[1773130066368,0.6384792,2059.3,2058.3,5.9755]
[1773130066571,0.00308036,2059.3,2058.5,0.64855174]
[1773130066772,1.3310005,2060.2,2058.5,0.64855174]
[1773130066773,0.63227072,2060.0,2058.6,0.64855174]
[1773130066970,0.63227072,2060.0,2058.7,0.64855174]
[1773130067773,0.63800884,2060.0,2058.7,0.64855174]
[1773130067974,0.63227072,2059.8,2058.3,0.64855174]
[1773130068173,0.63227072,2059.6,2058.3,0.64855174]
[1773130068376,0.63227072,2059.6,2058.0,0.64855174]
[1773130069367,0.63227072,2059.6,2058.1,0.65139546]
[1773130072570,7.76856566,2060.0,2058.1,0.65139546]
[1773130072772,4.73484426,2061.7,2059.8,11.94226]
[1773130072977,18.66470964,2062.7,2059.8,11.94226]
[1773130072978,0.68858297,2062.1,2060.4,5.96928]
[1773130073273,0.68858297,2062.1,2060.9,5.96789]
[1773130073467,0.68858297,2062.1,2060.2,5.96978]
[1773130073674,0.68858297,2062.1,2060.2,5.96999]
[1773130073873,0.68858297,2062.1,2060.1,12.874]
[1773130074076,0.69153173,2061.7,2060.1,0.00501608]
[1773130074367,0.69153173,2061.5,2060.1,0.00501608]
[1773130074573,0.69153173,2061.5,2060.2,5.96999]
[1773130074875,0.69153173,2061.5,2060.1,0.00501608]
[1773130075281,0.69707716,2062.1,2060.2,6.21267]
[1773130075475,0.69707716,2062.1,2060.1,0.00501608]
[1773130075676,0.70629967,2061.6,2060.1,0.00501608]
[1773130076182,0.0056064,2062.1,2060.8,5.96825]
[1773130076380,0.0056064,2062.1,2060.9,12.887]
[1773130077482,0.63081032,2063.1,2061.9,0.65139546]
[1773130077778,0.63081032,2063.0,2061.9,0.65139546]
[1773130077971,0.63081032,2063.4,2061.9,0.65139546]
[1773130078375,0.63520147,2063.4,2061.9,0.65517157]
[1773130078580,0.63081032,2063.2,2061.9,0.65517157]
[1773130079173,0.63081032,2062.6,2061.9,0.00377611]
[1773130079378,0.63081032,2062.6,2061.6,0.65139546]
[1773130079574,0.63642447,2062.4,2061.0,41.45139546]
[1773130079778,0.63081032,2062.4,2061.1,0.65139546]
[1773130080378,0.63081032,2062.2,2061.1,0.65711844]
[1773130080783,0.00561415,2062.7,2061.1,0.65711844]
[1773130080784,0.63081032,2062.7,2061.1,0.65711844]
[1773130081179,0.63081032,2063.0,2061.9,0.65139546]
[1773130081580,0.63081032,2063.3,2061.9,0.65139546]
[1773130082780,0.63081032,2063.7,2061.9,0.65139546]
[1773130083083,0.63520147,2063.4,2061.9,0.65139546]
[1773130083587,0.00439115,2063.4,2062.3,1.13408882]
[1773130083782,0.00439115,2063.4,2062.2,5.9642]
[1773130083783,1.16586282,2065.1,2063.3,1.13408882]
[1773130083986,1.16586282,2064.7,2063.3,1.13408882]
[1773130084283,1.16586282,2064.1,2062.2,1.13408882]
[1773130084483,1.16586282,2063.9,2062.2,1.13408882]
[1773130084787,1.16586282,2063.7,2062.2,1.1390441]
[1773130085286,1.16586282,2065.2,2062.9,1.13408882]
[1773130085481,1.16586282,2064.6,2063.3,1.13408882]
[1773130085676,1.16586282,2065.3,2063.4,1.13408882]
[1773130085986,1.16586282,2064.9,2063.4,1.13408882]
[1773130086178,1.16586282,2064.7,2063.4,1.13408882]
[1773130086373,1.16966039,2064.7,2063.4,1.13408882]
[1773130086581,1.16586282,2064.4,2063.4,1.13408882]
[1773130086977,5.95842,2064.2,2063.1,1.13408882]
[1773130087283,1.16586282,2064.0,2062.3,1.13408882]
[1773130087980,1.16586282,2063.2,2062.3,1.13408882]
[1773130088185,1.17093188,2063.2,2062.2,0.74236115]
[1773130088582,1.16586282,2062.7,2061.6,0.81049378]
[1773130088879,0.00506906,2063.2,2062.4,0.81049378]
[1773130089685,1.17093188,2063.2,2062.4,0.81353909]
[1773130089885,0.00561415,2063.1,2062.4,0.81353909]
[1773130090283,1.17093188,2063.2,2062.4,0.81353909]
[1773130090987,0.01068321,2063.2,2062.4,0.81353909]
[1773130091190,1.17654603,2063.2,2062.4,0.81353909]
[1773130091586,1.16586282,2063.9,2062.6,0.83372607]
[1773130091786,1.16586282,2063.9,2062.5,0.24241]
[1773130091787,1.16586282,2063.7,2062.4,0.83226742]
[1773130092186,1.16586282,2063.7,2062.4,0.00361041]
[1773130092386,1.16586282,2063.3,2062.4,0.83117523]
[1773130092685,1.16586282,2063.3,2062.4,0.00361041]
[1773130092892,1.17147697,2063.0,2062.4,0.00361041]
[1773130093287,0.00561415,2063.0,2062.4,0.82548778]
[1773130093591,1.16586282,2063.1,2062.4,0.00361041]
[1773130093794,0.00561415,2063.2,2062.4,0.81954509]
[1773130093982,0.00445359,2063.3,2062.4,0.81954509]
[1773130094183,0.00445359,2063.3,2062.4,0.00361041]
[1773130094184,1.17031641,2063.3,2062.4,0.00361041]
[1773130094488,0.00561415,2063.0,2062.4,0.00361041]
[1773130094682,1.16586282,2063.1,2062.4,0.00361041]
[1773130094883,1.16586282,2063.0,2062.4,0.00361041]
[1773130095291,0.00561415,2062.5,2061.4,0.8088253]
[1773130095485,1.16586282,2062.7,2061.4,0.8088253]
[1773130096187,1.16586282,2062.7,2061.4,0.81232429]
[1773130096491,1.17147697,2062.6,2061.4,0.81232429]
[1773130096695,1.16586282,2062.6,2061.4,0.81232429]
[1773130096890,1.16586282,2062.3,2061.4,0.00349899]
[1773130097291,0.00561415,2062.1,2061.4,0.00349899]
[1773130097694,1.16586282,2062.3,2061.4,0.77213201]
[1773130097891,1.16586282,2063.0,2061.8,0.76301887]
[1773130099494,0.00445359,2063.3,2061.6,0.24251]
[1773130099495,1.17031641,2063.3,2062.0,0.73496119]
[1773130099697,1.17031641,2063.3,2062.2,0.73496119]
[1773130101399,0.00445359,2063.3,2062.4,0.72964241]
[1773130101799,1.17031641,2063.3,2062.4,0.72964241]
[1773130101995,1.17031641,2063.3,2062.1,0.72964241]
[1773130102202,1.17031641,2063.3,2061.9,4.64709049]
[1773130102492,1.17031641,2063.3,2062.3,0.7226956]
[1773130102493,0.00445359,2063.3,2062.3,0.7226956]
[1773130102694,0.00445359,2063.3,2062.6,0.7226956]
[1773130102898,0.00445359,2063.3,2062.6,4.64014368]
[1773130103095,1.17031641,2063.3,2062.6,3.91744808]
[1773130103306,1.17031641,2063.3,2062.4,4.64014368]
[1773130103599,1.17031641,2063.3,2062.2,0.65383275]
[1773130103803,1.17031641,2063.3,2062.0,4.57128083]
[1773130104198,1.17031641,2063.3,2062.1,4.57128083]
[1773130104395,1.17031641,2063.3,2062.2,0.65298212]
[1773130104598,1.17031641,2063.3,2062.4,0.64706927]
[1773130105101,1.17031641,2063.3,2062.5,0.64706927]
[1773130105301,1.17031641,2063.3,2062.5,4.56451735]
[1773130105503,0.00445359,2063.3,2062.6,0.61853125]
[1773130106098,0.00445359,2063.3,2062.6,4.53597933]
[1773130106294,1.17031641,2063.3,2062.6,3.91744808]
[1773130106499,1.17031641,2063.3,2062.5,3.91744808]
[1773130106701,1.17031641,2063.3,2062.4,3.91744808]
[1773130106900,1.17031641,2063.3,2062.2,3.91744808]
[1773130107304,1.17031641,2063.3,2062.1,3.91744808]
[1773130107906,1.16586282,2063.1,2061.8,3.91744808]
[1773130108106,1.16586282,2063.1,2061.7,4.50836771]
[1773130108305,5.96131,2063.2,2061.7,3.91744808]
[1773130108306,1.16586282,2062.9,2061.7,3.91744808]
[1773130108502,1.16586282,2062.7,2061.6,3.91744808]
[1773130108708,1.16586282,2062.7,2061.4,6.00709325]
[1773130108709,1.16586282,2062.7,2061.5,3.91744808]
[1773130108908,6.56,2062.6,2061.4,3.92094707]
[1773130109110,1.16586282,2062.5,2061.4,3.92094707]
[1773130109307,1.16586282,2062.4,2061.4,3.92094707]
[1773130109904,1.16586282,2062.4,2061.4,0.00349899]
[1773130111309,1.16586282,2062.4,2061.6,0.58313634]
[1773130112112,1.16586282,2062.3,2061.4,0.00349899]
[1773130112307,11.85676281,2063.1,2061.4,0.00349899]
[1773130112308,1.16586282,2063.1,2061.7,0.57651712]
[1773130112508,5.8995364,2063.3,2061.5,5.96597]
[1773130112509,0.00445359,2063.3,2062.0,0.84403716]
[1773130112710,1.17031641,2063.3,2062.1,0.84403716]
[1773130113208,1.17031641,2063.3,2062.2,0.84403716]
[1773130114717,0.00445359,2063.3,2062.5,0.88186786]
[1773130114930,1.23037571,2064.4,2062.8,0.87741427]
[1773130115114,1.23037571,2064.4,2063.0,0.87741427]
[1773130115917,1.2345053,2064.4,2063.0,0.88255324]
[1773130116106,1.23037571,2064.2,2063.0,0.00513897]
[1773130116308,1.23037571,2064.0,2063.0,0.00513897]
[1773130116511,1.23037571,2063.8,2063.0,0.00513897]
[1773130117214,1.23037571,2063.8,2062.5,6.00359426]
[1773130117414,1.23037571,2063.8,2062.4,6.00359426]
[1773130117612,1.23037571,2063.6,2062.3,0.87703538]
[1773130118317,1.23037571,2063.4,2062.3,0.00411339]
[1773130118512,1.23037571,2063.4,2062.3,0.70394779]
[1773130118711,6.20101,2064.1,2062.6,0.6998344]
[1773130118712,1.47259571,2064.1,2062.6,0.6998344]
[1773130118911,1.47259571,2064.1,2062.7,0.6998344]
[1773130119315,1.23037571,2064.0,2062.5,6.69422995]
[1773130119508,1.23037571,2064.0,2062.6,6.00359426]
[1773130119813,1.23037571,2064.0,2062.6,0.6839562]
[1773130120708,1.23037571,2063.8,2062.6,0.6839562]
[1773130120909,1.23037571,2063.8,2062.5,6.00359426]
[1773130121115,1.23037571,2063.8,2062.4,6.68040333]
[1773130121419,1.23037571,2063.8,2062.4,0.67680907]
[1773130121815,1.23037571,2063.7,2062.3,6.00770765]
[1773130122016,1.23037571,2063.5,2062.3,0.67419537]
[1773130123818,1.23037571,2063.3,2062.2,6.00359426]
[1773130124014,1.23037571,2063.2,2062.1,0.66145829]
[1773130124619,1.23037571,2063.2,2061.8,6.65823967]
[1773130124825,1.23037571,2063.2,2061.8,0.65874844]
[1773130126226,1.23037571,2063.7,2062.3,0.65259023]
[1773130126523,1.23037571,2063.7,2062.6,6.65567594]
[1773130126716,1.23037571,2063.7,2062.7,0.64550967]
[1773130127925,1.23037571,2063.7,2062.5,6.64276428]
[1773130128123,1.23037571,2063.7,2062.6,0.63917002]
[1773130129720,1.23037571,2063.7,2062.6,0.62678835]
[1773130130624,1.23037571,2063.7,2062.7,0.61977615]
[1773130131420,1.23037571,2064.1,2063.1,0.61672004]
[1773130131622,0.00412959,2064.4,2063.2,6.6203143]
[1773130131821,1.23037571,2065.1,2063.8,2.81662594]
[1773130132033,1.23037571,2065.1,2063.7,0.61259045]
[1773130132327,1.23037571,2064.9,2063.7,0.61259045]
[1773130132528,1.23037571,2064.9,2063.5,6.00359426]
[1773130132529,1.23037571,2064.9,2063.5,0.60588952]
[1773130132724,6.532,2064.8,2063.5,0.61128464]
[1773130133031,1.23037571,2064.7,2063.5,0.00539512]
[1773130133225,1.23037571,2064.5,2063.5,0.00539512]
[1773130133822,1.23037571,2064.3,2062.8,6.00359426]
[1773130134229,1.23037571,2064.3,2063.0,0.59988859]
[1773130134732,1.23037571,2064.3,2063.2,0.59340024]
[1773130135429,1.10690335,2064.8,2063.4,0.62978738]
[1773130135727,6.06301301,2065.8,2063.9,11.91858]
[1773130135922,1.10690335,2065.7,2064.5,0.62333628]
[1773130136531,1.11290436,2065.7,2064.5,0.62333628]
[1773130136726,1.10690335,2065.7,2064.5,0.62333628]
[1773130137123,1.1127005,2065.7,2064.5,0.62774187]
[1773130137433,1.10690335,2065.4,2064.5,0.00440559]
[1773130137634,1.10690335,2065.1,2064.5,0.00440559]
[1773130138233,1.10690335,2065.1,2063.7,0.58040755]
[1773130138626,1.10690335,2064.9,2063.7,0.58040755]
[1773130139428,1.10690335,2064.9,2063.7,0.58417195]
[1773130139833,1.10690335,2064.9,2063.7,0.0037644]
[1773130140330,1.10690335,2064.1,2062.9,0.48748975]
[1773130140530,1.10690335,2064.1,2062.6,0.48748975]
[1773130141026,1.10690335,2064.1,2062.7,0.4811164]
[1773130141432,1.11165657,2064.1,2062.7,0.48526733]
[1773130142033,1.10690335,2063.9,2062.7,0.00415093]
[1773130142332,1.10690335,2063.7,2062.7,0.00415093]
[1773130143128,1.10690335,2063.5,2062.7,0.00415093]
[1773130143333,1.10690335,2063.5,2062.1,0.50763459]
[1773130143532,1.16592054,2063.3,2062.1,0.50763459]
[1773130143734,1.16592054,2063.3,2061.8,0.49666526]
[1773130143934,1.16592054,2063.1,2061.7,6.00359426]
[1773130144135,1.16592054,2063.1,2061.7,0.49666526]
[1773130144326,1.16592054,2063.1,2061.7,0.50177734]
[1773130144927,1.16592054,2062.9,2061.7,0.00511208]
[1773130145133,1.16592054,2062.7,2061.7,0.00511208]
[1773130145332,1.16592054,2062.6,2061.7,0.00511208]
[1773130145631,1.16592054,2062.3,2061.7,0.00511208]
[1773130146136,1.16592054,2062.1,2061.7,0.00511208]
[1773130146332,1.16592054,2062.5,2061.3,0.48848311]
[1773130146537,0.00433453,2062.6,2061.5,6.48540395]
[1773130146740,0.00433453,2062.6,2061.6,0.48180969]
[1773130146934,1.17025507,2062.6,2061.6,0.48180969]
[1773130147235,1.17025507,2062.6,2061.6,0.4862195]
[1773130147436,1.17025507,2062.6,2061.6,0.00440981]
[1773130147637,1.17025507,2062.6,2061.6,0.49253932]
[1773130148138,1.17025507,2062.6,2061.6,0.00440981]
[1773130148334,1.17625608,2062.6,2061.6,0.00440981]
[1773130149138,1.17025507,2062.6,2061.6,0.48588149]
[1773130149436,0.00433453,2062.6,2061.6,0.48588149]
[1773130150235,1.17025507,2062.6,2061.6,0.48588149]
[1773130151038,1.17025507,2062.6,2061.6,0.50407049]
[1773130151543,1.16592054,2062.3,2061.6,0.00440981]
[1773130151841,1.17025507,2062.6,2061.6,0.49421899]
[1773130152637,0.00433453,2062.6,2061.6,0.73672899]
[1773130152837,0.00433453,2062.6,2061.7,0.48310687]
[1773130153043,1.17025507,2062.6,2061.6,0.00440981]
[1773130153242,1.17625608,2062.6,2061.6,0.48751668]
[1773130153638,1.16592054,2062.4,2061.6,0.00440981]
[1773130154246,1.17192155,2062.3,2061.6,0.00440981]
[1773130154544,1.16592054,2062.3,2061.6,0.00440981]
[1773130154735,1.16592054,2062.0,2061.6,0.00440981]
[1773130154935,1.16592054,2062.3,2061.6,0.00440981]
[1773130155744,1.16592054,2062.0,2061.6,0.00440981]
[1773130156243,1.16592054,2062.0,2061.4,0.47121599]
[1773130156244,1.17192155,2062.0,2061.4,0.47121599]
[1773130156548,1.16592054,2062.5,2061.4,0.47121599]
[1773130156846,1.16592054,2062.2,2061.4,0.47121599]
[1773130157338,1.16592054,2062.5,2061.6,0.45470856]
[1773130157543,1.16592054,2062.5,2061.5,0.24252]
[1773130158137,1.16592054,2062.2,2061.4,0.00607072]
[1773130158742,1.16592054,2061.8,2061.4,0.00607072]
[1773130159244,1.17192155,2061.7,2060.9,0.44456301]
[1773130159542,1.16592054,2061.7,2060.9,0.00257831]
[1773130159741,1.16592054,2061.4,2060.9,0.00257831]
[1773130160140,0.00600101,2061.2,2060.9,0.00257831]
[1773130160340,1.16592054,2061.4,2060.7,0.43105028]
[1773130161040,1.16592054,2061.4,2060.3,0.42539594]
[1773130161546,1.16592054,2061.4,2060.3,0.42919636]
[1773130161848,1.16592054,2061.5,2060.5,0.39191999]
[1773130162546,1.16592054,2061.5,2060.4,0.24265]
[1773130162846,1.16592054,2061.3,2060.3,0.00380042]
[1773130163243,1.16592054,2061.1,2060.3,0.00380042]
[1773130163546,1.16999575,2061.1,2060.3,0.00380042]
[1773130163746,1.17599676,2061.1,2060.3,0.00380042]
[1773130164145,1.16592054,2060.9,2060.3,0.00380042]
[1773130164749,1.16592054,2060.7,2060.3,0.00380042]
[1773130165047,1.16592054,2060.7,2059.9,0.38396095]
[1773130165248,0.00407521,2061.1,2059.9,0.38396095]
[1773130165546,1.16999575,2061.1,2060.3,0.38617636]
[1773130165946,1.16999575,2061.1,2060.2,0.24268]
[1773130166149,1.16999575,2061.1,2060.2,0.24687702]
[1773130166347,1.16592054,2060.8,2060.2,0.24687702]
[1773130167052,1.17192155,2060.7,2060.2,0.00419702]
[1773130167351,1.16592054,2060.5,2059.7,0.38498526]
[1773130167747,1.16592054,2061.0,2059.9,0.37901506]
[1773130168052,0.00407521,2061.1,2060.3,0.37901506]
[1773130168447,1.16592054,2061.5,2060.5,0.37288959]
[1773130168647,1.16592054,2062.6,2060.9,0.36881438]
[1773130168855,1.16592054,2062.0,2060.8,0.24261]
[1773130169345,1.16592054,2061.4,2060.7,0.24262]
[1773130169550,0.00449836,2061.4,2060.8,0.34373348]
[1773130170549,0.00600101,2061.3,2060.8,0.34373348]
[1773130170752,1.16592054,2061.3,2060.7,0.24262]
[1773130170948,0.00449836,2061.4,2060.7,0.24262]
[1773130170949,1.16592054,2061.1,2060.7,0.24262]
[1773130171352,0.00600101,2060.9,2060.7,0.24262]
[1773130171544,1.16592054,2061.1,2060.7,0.24262]
[1773130171846,1.16592054,2061.1,2060.3,6.34000188]
[1773130172050,1.16592054,2061.1,2060.3,0.00462861]
[1773130172445,1.1704189,2061.4,2060.5,0.28024022]
[1773130173254,1.1704189,2061.4,2060.6,0.24265]
[1773130174148,1.1704189,2061.4,2060.3,6.27282118]
[1773130174449,1.1704189,2061.4,2060.4,6.00359426]
[1773130174651,1.1704189,2061.4,2060.3,6.27282118]
[1773130176245,1.1704189,2061.4,2060.3,6.00822287]
[1773130176451,1.1704189,2061.4,2060.3,0.00462861]
[1773130177556,1.1704189,2061.4,2060.5,0.24264]
[1773130177852,1.1704189,2061.4,2060.3,0.00462861]
[1773130180455,1.1704189,2061.4,2060.3,0.15438716]
[1773130180653,1.1704189,2061.4,2060.5,0.24264]
[1773130180850,1.1704189,2061.4,2060.5,0.39239855]
[1773130181356,1.1704189,2061.4,2060.5,6.39599281]
[1773130181754,0.00449836,2061.4,2060.8,0.13599236]
[1773130182259,1.00390825,2061.6,2060.8,0.13599236]
[1773130182652,1.00390825,2061.6,2060.9,0.2426]
[1773130182855,1.00390825,2062.5,2061.2,0.13021673]
[1773130183154,1.00390825,2062.5,2061.4,6.00359426]
[1773130183359,1.00985814,2062.5,2061.5,6.24611426]
[1773130183553,1.00985814,2062.5,2061.6,0.11595035]
[1773130183755,1.00985814,2062.5,2061.6,6.11954461]
[1773130184056,1.00985814,2062.5,2061.7,6.24609426]
[1773130184562,1.00985814,2062.5,2061.7,0.2425]
[1773130184762,2.31647902,2062.7,2061.9,0.3527109]
[1773130184961,1.007227,2063.0,2062.2,0.1102309]
[1773130185262,1.007227,2063.0,2062.3,0.1102309]
[1773130185463,1.00960637,2064.0,2062.6,0.10547216]
[1773130185666,1.00960637,2064.0,2062.4,13.15142]
[1773130185860,1.01544072,2064.0,2062.4,19.15978682]
[1773130186163,1.01544072,2064.0,2062.4,13.15619256]
[1773130186564,1.01544072,2064.0,2062.4,12.91377256]
[1773130187956,7.42944072,2064.0,2062.4,12.91377256]
[1773130188162,1.00390825,2063.9,2062.4,0.00477256]
[1773130188358,1.00390825,2063.7,2062.4,0.00477256]
[1773130189867,1.00390825,2063.5,2061.8,0.42364107]
[1773130190771,1.00390825,2063.5,2061.9,0.18189737]
[1773130190972,1.00390825,2063.5,2062.1,0.18189737]
[1773130191771,1.00390825,2063.5,2062.3,0.19604293]
[1773130191967,1.00390825,2063.5,2062.2,0.24244]
[1773130191968,1.00390825,2063.5,2062.5,0.19604293]
[1773130192168,1.00390825,2063.5,2062.4,0.24242]
[1773130192564,1.00390825,2063.5,2062.1,0.19006448]
[1773130193271,1.00390825,2063.5,2061.8,0.46802383]
[1773130193471,1.00390825,2063.5,2061.9,0.22030016]
[1773130194767,1.00390825,2063.5,2062.1,0.20837546]
[1773130194967,1.00390825,2063.5,2062.3,0.20837546]
[1773130195370,1.00390825,2063.5,2062.5,0.20837546]
[1773130195570,1.02229461,2063.9,2062.7,0.2450021]
[1773130196967,1.02229461,2063.9,2062.9,1.02456557]
[1773130200379,1.02229461,2063.9,2063.0,0.24235]
[1773130200574,1.02229461,2063.9,2063.1,1.02456557]
[1773130200775,1.02229461,2063.9,2062.6,1.02456557]
[1773130201176,1.02229461,2063.9,2062.7,1.02456557]
[1773130201372,1.02229461,2063.9,2062.8,0.24237]
[1773130201673,1.02229461,2063.9,2062.9,1.02456557]
[1773130202677,1.02229461,2063.9,2062.4,1.02456557]
[1773130203074,1.02229461,2063.9,2062.6,1.02456557]
[1773130203275,1.02229461,2063.9,2062.8,1.02456557]
[1773130203475,1.02229461,2063.9,2062.4,2.81890145]
[1773130203670,1.02229461,2063.9,2062.6,1.00994434]
[1773130204381,1.30560466,2063.6,2062.0,1.00994434]
[1773130204581,1.06332466,2063.6,2062.1,0.24245]
[1773130204782,1.06332466,2063.6,2062.4,1.00994434]
[1773130204982,1.06332466,2063.6,2062.2,1.00994434]
[1773130205377,1.06332466,2063.4,2061.9,1.00994434]
[1773130205682,1.06332466,2063.4,2062.1,1.00994434]
[1773130207379,1.06332466,2063.4,2062.3,1.00994434]
[1773130207878,1.06332466,2063.4,2062.2,0.24244]
[1773130208377,1.06332466,2063.4,2062.1,1.00994434]
[1773130209182,1.06332466,2063.1,2061.8,0.00523367]
[1773130209379,1.06332466,2063.1,2061.2,7.20859244]
[1773130209380,1.06332466,2062.7,2061.2,7.20859244]
[1773130209580,1.06332466,2062.7,2061.5,1.00994434]
[1773130210485,1.06332466,2062.7,2061.5,1.01505952]
[1773130216185,1.06332466,2062.7,2061.5,0.00511518]
[1773130217083,1.06332466,2062.5,2061.1,1.00994434]
[1773130217276,1.06332466,2062.5,2061.3,1.00994434]
[1773130218087,1.06772343,2062.5,2061.3,1.01531301]
[1773130218484,1.06772343,2062.5,2061.5,1.00994434]
[1773130218986,0.00439877,2062.5,2061.7,1.00994434]
[1773130219381,1.06772343,2062.5,2061.7,1.00994434]
[1773130219891,1.06772343,2062.5,2061.6,6.96603244]
[1773130220190,0.00439877,2062.5,2061.6,1.00994434]
[1773130220385,0.00439877,2062.5,2061.7,1.00994434]
[1773130221789,0.00439877,2062.5,2061.7,1.25244434]
[1773130222283,1.06772343,2062.5,2061.7,1.25244434]
[1773130224185,0.00439877,2062.5,2061.7,4.07408251]
[1773130224491,0.99531774,2063.2,2062.4,1.00991055]
[1773130224686,1.28973023,2063.3,2062.5,1.00991055]
[1773130224882,0.99531774,2063.5,2062.7,1.00991055]
[1773130225084,0.99531774,2063.5,2062.3,1.00991055]
[1773130225284,1.00134873,2063.5,2062.0,6.1985781]
[1773130225488,1.06054121,2063.3,2061.9,0.9796153]
[1773130225677,1.06054121,2063.3,2061.7,5.9560881]
[1773130225678,1.06054121,2063.2,2061.7,5.9560881]
[1773130225879,1.06054121,2063.2,2061.6,0.9796153]
[1773130226089,1.06054121,2063.1,2061.6,0.9796153]
[1773130226285,1.06054121,2062.8,2061.3,0.98498397]
[1773130226487,1.06054121,2062.8,2061.4,0.9796153]
[1773130227588,1.06054121,2062.8,2061.6,0.9796153]
[1773130228189,1.06054121,2062.8,2061.4,0.9796153]
[1773130228790,1.06054121,2062.7,2061.4,0.9796153]
[1773130230295,1.06054121,2062.4,2061.3,0.00536867]
[1773130230691,1.06054121,2062.1,2060.8,6.9357034]